Cogmind - Beta 15 @@@ ROGUE MODE // 2025.06.14 @ 13:57:04 Player: 3.14 Result: Destroyed by Y-54 Guardian with Flak Gun Performance ------------- Evolutions (0) 0 Regions Visited (3) 600 Robots Destroyed (27) 135 Value Destroyed (466) 466 Prototype IDs (2) 40 Alien Tech Used (0) 0 Bonus (0) 0 TOTAL SCORE: 1241 Bonus ------- None Cogmind --------- Core Integrity 0/250 Matter 250/300 Energy 51/100 System Corruption 4% Temperature Cool (47) Movement Core (1450) Ox28 Location -7/Recycling Parts ------- > --- POWER (1) -------- (None) > --- PROPULSION (2) --- (None) > --- UTILITY (2) ------ Huge Storage Unit > --- WEAPON (2) ------- Subdweller Laser Assault Rifle > --- INVENTORY (25) --- Subdweller Power Source Light Treads Light Treads Subdweller Monowheel Disposable Heat Sink Disposable Heat Sink Medium Matter Pod (100) High-capacity Matter Pod (200) High-capacity Matter Pod (200) Subdweller Optics Seismic Detector Medium Laser Medium Laser Subdweller Laser Assault Rifle Light Assault Rifle Light Cannon Grenade Launcher Scrap Shield Fragment (48) Peak State ------------ > --- POWER ------------ Light Ion Engine > --- PROPULSION ------- Light Treads Light Treads > --- UTILITY ---------- Heat Sink Huge Storage Unit > --- WEAPON ----------- Subdweller Laser Beam Cannon > --- INVENTORY -------- Light Ion Engine Subdweller Power Source Light Treads Aluminum Leg Aluminum Leg Disposable Heat Sink Medium Matter Pod High-capacity Matter Pod High-capacity Matter Pod Seismic Detector Medium Laser Medium Laser Subdweller Laser Assault Rifle Assault Rifle Light Assault Rifle Light Cannon Grenade Launcher [Rating: 10] Favorites ----------- Power Light Ion Engine Engine Light Ion Engine Propulsion Light Treads Treads Light Treads Leg Aluminum Leg Utility Huge Storage Unit Device Seismic Detector Storage Huge Storage Unit Weapon Assault Rifle Energy Gun Subdweller Laser Energy Cannon Beam Cannon Ballistic Gun Assault Rifle Ballistic Cannon Light Cannon Build | -11 -10 -10 -7 ------- Run | Yrd Mat Sub Rec Slots Evolved . | . . . . Power . | . . . . Propulsion . | . . . . Utility . | . . . . Weapon . | . . . . Parts Attached 14 | 1 7 5 1 Power 2 | . 1 1 . Engine 2 | . 1 1 . Core . | . . . . Reactor . | . . . . Propulsion 4 | . 2 2 . Treads 2 | . 2 . . Leg 2 | . . 2 . Wheel . | . . . . Hover . | . . . . Flight . | . . . . Utility 3 | 1 1 1 . Device 2 | 1 . 1 . Storage 1 | . 1 . . Processor . | . . . . Hackware . | . . . . Protection . | . . . . Artifact . | . . . . Weapon 5 | . 3 1 1 Energy Gun 2 | . . 1 1 Energy Cannon 1 | . 1 . . Ballistic Gun 1 | . 1 . . Ballistic Cannon 1 | . 1 . . Launcher . | . . . . Special Weapon . | . . . . Impact Weapon . | . . . . Slashing Weapon . | . . . . Piercing Weapon . | . . . . Special Melee Weapon . | . . . . Unidentified Prototypes . | . . . . Parts Lost 7 | . . 4 3 Power 2 | . . 1 1 Propulsion 3 | . . 1 2 Utility 1 | . . 1 . Weapon 1 | . . 1 . Highest Loss Streak 3 | . . 3 3 To Critical Strikes . | . . . . Average Backups 12 | 6 10 18 18 Power 1 | 1 1 1 1 Propulsion 2 | 4 2 3 3 Utility 3 | . 2 6 7 Weapon 4 | 1 4 7 7 Tool/Special . | . . . . Unused Backups 22 | 6 4 . 12 Power 2 | 1 . . 1 Propulsion 6 | 2 2 . 2 Utility 8 | 1 1 . 6 Weapon 6 | 2 1 . 3 Tool/Special . | . . . . Average Slot Usage (%) 97 | . 100 96 84 Engine 13 | . 14 13 13 Treads 24 | . 27 23 . Leg 3 | . . 5 28 Device 12 | . 14 11 . Storage 14 | . 14 14 14 Energy Gun 3 | . . 10 14 Energy Cannon 7 | . 7 13 . Ballistic Gun 13 | . 15 . 14 Ballistic Cannon 4 | . 4 3 . Peak Build Rating 10 | 7 8 10 9 Average Rating 7 | 6 7 9 8 On Entrance 7 | 6 7 8 8 Naked Turns . | . . . . Heaviest Build 92 | 14 92 91 89 Greatest Support 40 | 20 40 40 20 Greatest Overweight (x) 4 | . 2 4 4 Average Overweight (x) 1 | . 1 2 4 Largest Inventory Capacity 25 | 8 25 25 25 Average Capacity 22 | 8 22 25 25 Most Carried 22 | 7 14 22 19 Average Carried 12 | 6 10 19 19 Final Capacity 25 | 8 25 25 25 Final Carried 20 | 7 14 20 19 Class Distribution -------------------- 100% | Mutant Dominant Class ---------------- Mutant | -10/Materials Mutant | -10/Subcaves Mutant | -7/Recycling Resources | -11 -10 -10 -7 ----------- Run | Yrd Mat Sub Rec Matter Collected 967 | 242 659 66 . Remotely . | . . . . Salvage Created 885 | 129 515 241 . Parts 51 | 13 21 17 . Haulers Intercepted 2 | . 2 . . Recyclers Shooed 6 | . 6 . . Parts Field Recycled . | . . . . Retrieved Matter . | . . . . Parts Self-Destructed 13 | . . 13 . Prevented . | . . . . Kills | -11 -10 -10 -7 ------- Run | Yrd Mat Sub Rec Combat Hostiles Destroyed 14 | . 7 7 . Guns 9 | . 7 2 . Cannons 5 | . . 5 . Classes Destroyed 9 | 2 5 2 . Worker 1 | . 1 . . Tunneler 4 | 3 1 . . Hauler 2 | . 2 . . Recycler 3 | 1 2 . . Turret 2 | . . 2 . Watcher 1 | . 1 . . Swarmer 7 | . 3 4 . Grunt 4 | . 4 . . Subdweller 3 | . . 3 . Best Kill Streak 5 | 2 5 5 . Combat Bots Only 5 | . 5 4 . Max Kills in Single Turn 1 | 1 1 1 . Gunslinging . | . . . . Exploded . | . . . . Melee . | . . . . Uniques/NPCs Destroyed . | . . . . Combat | -11 -10 -10 -7 -------- Run | Yrd Mat Sub Rec Hostile Shots Fired 169 | . 21 112 36 Missed 57 | . 5 45 7 Hits 112 | . 16 67 29 Projectile 112 | . 16 67 29 Critical Strikes 2 | . . 1 1 Damage Taken 1168 | . 184 648 336 Core 255 | . 38 106 111 Absorbed by Shields . | . . . . Core Remaining (%) 100 | 100 . . . Volleys Fired 67 | 8 27 24 8 Largest 2 | 2 2 2 2 Hottest 120 | 40 90 120 80 Shots Fired 129 | 16 54 45 14 Gun 86 | 16 44 12 14 Cannon 43 | . 10 33 . Launcher . | . . . . Special . | . . . . Kinetic 81 | 16 48 9 8 Thermal 48 | . 6 36 6 Explosive . | . . . . Electromagnetic . | . . . . Robot Hit Streak 13 | 8 13 10 7 Robot Miss Streak 3 | 3 2 2 2 Penetration Max . | . . . . Secondary Targets . | . . . . Shots Hit Robots 93 | 11 38 33 11 Core Hits 48 | 6 27 14 1 Critical Kills . | . . . . Critical Parts Destroyed 1 | . 1 . . Critical Strikes 2 | . 1 1 . Destroy 1 | . 1 . . Blast 1 | . . 1 . Melee Attacks . | . . . . Impact . | . . . . Slashing . | . . . . Piercing . | . . . . Sneak Attacks . | . . . . Combat Hostiles . | . . . . Follow-up Attacks . | . . . . Damage Inflicted 1396 | 130 494 545 227 Guns 854 | 130 330 177 217 Cannons 470 | . 102 368 . Explosions . | . . . . Melee . | . . . . Ramming 72 | . 62 . 10 Kinetic 669 | 130 380 69 90 Thermal 655 | . 52 476 127 Explosive . | . . . . Electromagnetic . | . . . . Impact . | . . . . Slashing . | . . . . Piercing . | . . . . Highest Corruption 4 | . . . 4 Average Corruption 2 | . . . 2 Corruption Purged . | . . . . Corruption Blocked . | . . . . Effects 1 | . . . 1 Energy Discharges 1 | . . . 1 Overload Shots . | . . . . Overflow Damage . | . . . . Projectiles . | . . . . Explosions . | . . . . Melee . | . . . . Knockbacks 3 | . 3 . . Impact 1 | . 1 . . Kinetic 2 | . 2 . . Secondary . | . . . . Self-Inflicted Damage . | . . . . Shots . | . . . . Rammed 11 | . 11 . . Targets Rammed 13 | . 12 . 1 Kicked 1 | . . . 1 Crushed 1 | . 1 . . Highest Temperature 229 | . 36 229 36 Average Temperature 24 | . 12 49 20 Received Heat Transfer 623 | . 57 542 24 Siege Activations . | . . . . Martial Activations . | . . . . Shielding Activations . | . . . . Robots Disrupted . | . . . . Combat Hostiles . | . . . . Robots Corrupted . | . . . . Combat Hostiles . | . . . . Parts Fried . | . . . . Impact Corruptions . | . . . . Robots Melted . | . . . . Combat Hostiles . | . . . . Parts Melted . | . . . . Heat Transferred 1065 | . 111 829 125 Parts Sabotaged . | . . . . Parts Stolen . | . . . . Parts Stripped . | . . . . Power Chain Reactions . | . . . . Alert | -11 -10 -10 -7 ------- Run | Yrd Mat Sub Rec Maximum Alert Level . | . . . . Low Security (%) 100 | 100 100 . 100 Level 1 . | . . . . Level 2 . | . . . . Level 3 . | . . . . Level 4 . | . . . . Level 5 . | . . . . High Security . | . . . . Max Security . | . . . . Peak Influence 95 | 10 95 . 24 Initial 24 | . 3 . 24 Average 8 | 1 9 . 3 Influence Increases 391 | 20 221 150 . Destroy 0b10 Robot/C 260 | . 140 120 . Destroy 0b10 Robot/NC 55 | 20 35 . . Destroy Leader 26 | . 26 . . Successful Hack 19 | . 19 . . Destroy Structure 1 | . 1 . . Lose Combat Pursuer 30 | . . 30 . Influence Decreases 391 | 15 226 98 52 Entered New Map 30 | . 2 . 28 Time Decay 321 | 15 224 58 24 Lost Part 40 | . . 40 . Squads Dispatched . | . . . . Investigation . | . . . . Extermination . | . . . . Reinforcement . | . . . . Assault . | . . . . Garrison . | . . . . Intercept . | . . . . Searches Triggered . | . . . . Construction Impeded . | . . . . Haulers Reinforced . | . . . . Active Scanning Responses . | . . . . Cargo Convoy Interrupts . | . . . . Stealth | -11 -10 -10 -7 --------- Run | Yrd Mat Sub Rec Distress Signals 1 | . 1 . . Communications Jammed . | . . . . Distress Signals . | . . . . Times Spotted 32 | . 20 10 2 Peak Tracking Total 6 | . 3 6 2 Tactical Retreats 1 | . . 1 . Traps | -11 -10 -10 -7 ------- Run | Yrd Mat Sub Rec Traps Triggered 1 | . 1 . . Indirectly . | . . . . Trap Hack Attempts . | . . . . Triggered . | . . . . Disarmed . | . . . . Reprogrammed . | . . . . Reused . | . . . . Traps Extracted . | . . . . Installed . | . . . . Triggered . | . . . . Machines | -11 -10 -10 -7 ---------- Run | Yrd Mat Sub Rec Machines Disabled 1 | . . 1 . Max in Single Turn 1 | . . 1 . Machines Repaired . | . . . . Machines Dismantled . | . . . . Machines Sabotaged . | . . . . Overloaded Fab Kills . | . . . . Hacking | -11 -10 -10 -7 --------- Run | Yrd Mat Sub Rec Machines Accessed 7 | . 7 . . Terminals 5 | . 5 . . Fabricators . | . . . . Repair Stations . | . . . . Recycling Units 2 | . 2 . . Scanalyzers . | . . . . Garrison Access . | . . . . Total Hacks 16 | . 16 . . Successful 10 | . 10 . . Failed 6 | . 6 . . Catastrophic 1 | . 1 . . Database Lockouts . | . . . . Manual 10 | . 10 . . Terminals 12 | . 12 . . Fabricators . | . . . . Repair Stations . | . . . . Recycling Units 4 | . 4 . . Scanalyzers . | . . . . Garrison Access . | . . . . Terminal Hacks 2 | . 2 . . Prototype ID Bank 1 | . 1 . . Locate Traps 1 | . 1 . . Fabricator Hacks . | . . . . Repair Station Hacks . | . . . . Recycling Unit Hacks 2 | . 2 . . Retrieve Components 2 | . 2 . . Scanalyzer . | . . . . Garrison Access Hacks . | . . . . Unauthorized Hacks 6 | . 6 . . Terminals 6 | . 6 . . Botnet 1 | . 1 . . Skim 5 | . 5 . . Fabricators . | . . . . Repair Stations . | . . . . Recycling Units . | . . . . Scanalyzers . | . . . . Garrison Access . | . . . . Data Cores Recovered . | . . . . Used . | . . . . Hacking Detections 5 | . 5 . . Full Trace Events 1 | . 1 . . Feedback Events . | . . . . Feedback Blocked . | . . . . Robot Schematics Acquired . | . . . . Robots Built . | . . . . Authchips . | . . . . Time . | . . . . Total Robot Build Rating . | . . . . Part Schematics Acquired . | . . . . Parts Built . | . . . . Authchips . | . . . . Time . | . . . . Total Part Build Rating . | . . . . Parts Repaired . | . . . . Time . | . . . . Parts Recycled . | . . . . Recycled Matter . | . . . . Retrieved Matter . | . . . . Retrieved Components 18 | . 18 . . Parts Scanalyzed . | . . . . Part Schematics Acquired . | . . . . Parts Damaged . | . . . . Bothacking | -11 -10 -10 -7 ------------ Run | Yrd Mat Sub Rec Used RIF Installer . | . . . . Robots Hacked . | . . . . Non-combat . | . . . . Combat . | . . . . Robot Hacks Applied . | . . . . Relay Couplers Released . | . . . . Fabnet Peak Effective % . | . . . . Robots Rewired . | . . . . Allies Hacked . | . . . . Hacks Repelled . | . . . . Allies | -11 -10 -10 -7 -------- Run | Yrd Mat Sub Rec Total Allies . | . . . . Largest Group . | . . . . Highest-Rated Group . | . . . . Highest-Rated Ally . | . . . . Total Orders . | . . . . Ally Attacks . | . . . . Total Damage . | . . . . Kills . | . . . . Allies Corrupted . | . . . . Allies Melted . | . . . . Intel | -11 -10 -10 -7 ------- Run | Yrd Mat Sub Rec Active Infowar (turns) 2014 | 49 1960 5 . Seismic 2014 | 49 1960 5 . Robot Analysis Total . | . . . . Derelict Logs Recovered . | . . . . Drone Launches . | . . . . Drone Recoveries . | . . . . Exploration | -11 -10 -10 -7 ------------- Run | Yrd Mat Sub Rec Turns Passed 2683 | 71 1960 408 244 Spaces Moved 809 | 18 639 98 54 Core . | . . . . Treads 717 | . 635 82 . Legs 92 | 18 4 16 54 Wheels . | . . . . Hover . | . . . . Flight . | . . . . Fastest Speed 120 | 120 120 320 400 Average Speed 284 | 120 272 333 400 Slowest Speed 400 | 120 320 400 400 Overloaded Moves . | . . . . Propulsion Burnouts . | . . . . Robots Hopped . | . . . . Potential Cave-ins . | . . . . Cave-ins Triggered . | . . . . Exploration Rate (%) 27 | 4 79 8 18 Regions Visited 3 Branch Regions 2 Pre-discovered Areas 2 | . 2 . . Known Exits Taken 1 | . . 1 . Unknown Exits Taken 2 | 1 1 . . Scrap Searched . | . . . . Spaces Dug . | . . . . Terrain Destroyed . | . . . . Melee . | . . . . Projectile . | . . . . AOE . | . . . . Terrain Rammed . | . . . . Walls Destroyed . | . . . . Machines Disabled . | . . . . Actions | -11 -10 -10 -7 --------- Run | Yrd Mat Sub Rec Total 1039 | 52 787 135 65 Wait 113 | 25 88 . . Move 806 | 17 638 97 54 Hop . | . . . . Pick Up 19 | 1 10 8 . Fast Attach 1 | 1 . . . Attach 3 | . . 2 1 Detach . | . . . . Swap 12 | . 7 4 1 Drop 5 | . 5 . . Fire 67 | 8 27 24 8 Melee . | . . . . Ram . | . . . . Kick 1 | . . . 1 Crush 12 | . 12 . . Escape Stasis . | . . . . Rewire . | . . . . Trap . | . . . . Miscellaneous . | . . . . Route ------- -11/Scrapyard -10/Materials (discovered 6 exits: *Mat x3 / *Min x2 / [*Sub]) -10/Subcaves (discovered 3 exits: Mat x2 / *Rec) -7/Recycling (discovered 1 exit: Fac) History --------- Turn | Location | Event 1 | -11/Scrapyard | Discovered new exit (range 3) 72 | -11/Scrapyard | Entered Materials 302 | -10/Materials | Build established: Mutant 312 | -10/Materials | Discovered new exit (range 10) 396 | -10/Materials | Discovered new exit (range 11) 961 | -10/Materials | Discovered new exit (range 10) 1438 | -10/Materials | Identified exit to Mines 1452 | -10/Materials | Discovered new exit (range 15) 1500 | -10/Materials | Learned Storage stockpile data 1550 | -10/Materials | Learned location of 1 exit from Recycling 1624 | -10/Materials | Learned location of 2 exits from Mines 1645 | -10/Materials | Learned location of 2 exits from Subcaves 1658 | -10/Materials | Learned Storage trap positions 1718 | -10/Materials | Identified exit to Materials 1814 | -10/Materials | Learned Storage emergency access door positions 2032 | -10/Materials | Entered Subcaves 2033 | -10/Subcaves | Approached by a straggling Scientist 2033 | -10/Subcaves | Identified exit to Materials 2034 | -10/Subcaves | Identified exit to Recycling 2036 | -10/Subcaves | Ambushed by Subdwellers from Twisted Machinery 2350 | -10/Subcaves | Core integrity fell below 50% 2396 | -10/Subcaves | Lost 3 parts (1p1n1u) 2440 | -10/Subcaves | Entered Recycling 2441 | -7/Recycling | Identified exit to Factory 2677 | -7/Recycling | Core integrity fell below 20% 2684 | -7/Recycling | Destroyed by Y-54 Guardian with Flak Gun Last Messages --------------- 02363_ Heat Sink destroyed. 02365_ Lgt. Ion Engine destroyed. 02374_ Destroyed Autobeam. 02374_ Autobeam Turret destroyed. 02421_ Critical hit (Meltdown: +260). 02425_ Beam Cannon destroyed. LOCATION=RECYCLING GOAL=ESCAPE Loading 1 Recycling exit... 02617_ Kicked R-06 Scavenger. 02656_ P-60 Hacker springs to life. 02664_ Sub. Laser shoots sparks and powers down. 02673_ Lgt. Ion Engine destroyed. 02676_ Door malfunctions. 02677_ Destroyed Gravmag System. 02679_ Y-54 Guardian springs to life. 02680_ Destroyed Gravmag System. 02681_ Aluminum Leg destroyed. 02683_ System corrupted: Energy discharge (-23). 02683_ Destroyed Mic. Nuclear Core. Map ----- +----------------------------------------------------+ | ??????# #! ! !# ?????????????????? | | ??????# # + ?????????????????? | | ????### # ! # ??????????????????? | | ????# ! # ! # ???????????????????? | | ????# ! # # ?????????????????????? | | ????#!! + ! # #??????????????????????? | | ????### # ! ! # #??????????????????????? | | ??????# #######+## #??????????????????????? | | ??????# #?????# #??????????????????????? | | ?????## ##????# #??????????????????????? | | ?????# #????# ##+##?????????????????????? | | ?????# #????# # ?????????????????????? | | ?????# #?#### # ?????????????????????? | | ?????# #?# #! #????????????????????? | | ?????# #?# # [ #????????????????????? | | ?????#######?# """ # !% #????????????????????? | | ?????????????# """ # #????????????????????? | | ?????????????# """ # ! #????????????????????? | | ?????????????# #! #????????????????????? | | ?????????????# #!! #????????????????????? | | ??????########+##### # ! #????????????????????? | | ??????# # # !! #????????????????????? | | ??????# + #? a#????????????????????? | | ??????# # #?! #????????????????????? | | ??????# # ###p#########+####????????? | | ?????# # @ ???????? | | ?????## + ???????? | | ??????# # Y ???????? | | ??????# #####/### #####+####????????? | | ??????# #??# ??#?????????????????? | | ??????# #??# #???????????????????? | | ??????# #??# #???????????????????? | | ??????# #??# #???????????????????? | | ??????##########+###??# #???????????????????? | | ??????????????????????# #???????????????????? | | ??????????????????????# #???????????????????? | | ??????????????????????# #???????????????????? | | ??????????????????????# #???????????????????? | | ??????????????????????# #???????????????????? | | ??????????????????????+ #???????????????????? | | ??????????????????????# #???????????????????? | | ??????????????????????? #???????????????????? | | ???????????????????????## ##???????????????????? | | ?????????????????????????#?????????????????????? | | ???????????????????????????????????????????????? | | ???????????????????????????????????????????????? | | ???????????????????????????????????????????????? | | ???????????????????????????????????????????????? | | ???????????????????????????????????????????????? | | ???????????????????????????????????????????????? | +----------------------------------------------------+ Best States ------------- Heat Dissipation 35 Energy Generation 10 Energy Capacity 250 Matter Stores 300 Matter Capacity 300 Sight Range 16 Terrain Scan Density 10 Evasion (%) 45 Recoil Reduction 2 Item Schematics ----------------- None Robot Schematics ------------------ None Fabricated ------------ Nothing Repaired ---------- Nothing Alien Tech Used ----------------- None Achievements -------------- None Challenges ------------ None Game ------ Seed VariableInsulatedFlightbrick Manual? 0 Play Time 00:07:34 Cumulative 930.5 hours Start 2025.06.14 @ 13:49:57 End 2025.06.14 @ 13:57:04 Sessions 1 Manual Loads 0 Difficulty Rogue Special Mode None Game No. 1533 Rogue 1533 Adventurer 0 Explorer 0 Win Type - Total 91 Types 54/1/16/14/4/0/0/1/0/1 Lore% 91 Gallery% 83 Achievement% 85 Wizard Run 0 Options --------- Layout 0 ASCII 1 Keyboard 0 Movement Numpad Keybinds 1 Fullscreen 2 Font 18/SmallcapsGlow Map View 76x50 Zoom Use 0% Tactical HUD 1 Map Filters NONE Filters NONE Steam 1 RUN: 3686506c-d640-4a01-a3e5-238a5c02e427